fUSD/lending_fUSD_20250602
["ID","MTS","AMOUNT","RATE_DAILY","PERIOD"]
[363843611,1748896240834,-454.16,0.00026433,2]
[363843612,1748896240844,-202.0,0.0002646,2]
[363843613,1748896240854,-210.0,0.0002646,2]
[363843614,1748896240864,-209.2,0.000265,2]
[363843615,1748896240873,-209.2,0.000265,2]
[363843616,1748896240884,-209.2,0.000265,2]
[363843617,1748896240894,-200.0,0.000265,2]
[363843618,1748896240904,-700.0,0.00026538,7]
[363843619,1748896240913,-3200.3905548,0.00026545,2]
[363843620,1748896240922,-306.85777028,0.00026601,2]
[363843621,1748896240931,-807.1,0.00026648,2]
[363843622,1748896240940,-807.1,0.00026648,2]
[363843623,1748896240950,-34298.1810749,0.00026651,3]
[363843624,1748896240959,-23720.3296,0.00026661,2]
[363843625,1748896240969,-1000.0,0.00026661,2]
[363843626,1748896240978,-16791.69911319,0.0002667,2]
[363843627,1748896240988,-500.0,0.0002668,2]
[363843628,1748896240997,-587.0,0.00026681,2]
[363843629,1748896241006,-195.37,0.00026683,2]
[363843630,1748896241015,-772.23221135,0.00026689,2]
[363843631,1748896241024,-600.0,0.000267,9]
[363843632,1748896241033,-162.380719,0.00026724,2]
[363843633,1748896241043,-102894.543225,0.0002676,3]
[363843634,1748896241052,-151.0,0.0002677,7]
[363843635,1748896241062,-161.565653,0.0002677,7]
[363843636,1748896241071,-161.565653,0.0002677,7]
[363843637,1748896241080,-68596.3621499,0.0002677,3]
[363843638,1748896241089,-40735.2071356,0.0002677,3]
[363843639,1748896241099,-160.35,0.0002677,2]
[363843640,1748896241108,-500.0,0.00026773,2]
[363843641,1748896241117,-629.95573816,0.00026773,2]
[363843642,1748896241126,-5091.90089195,0.00026779,3]
[363843643,1748896241136,-151.0,0.0002678,7]
[363843644,1748896241145,-151.0,0.0002678,7]
[363843645,1748896241155,-151.0,0.0002678,7]
[363843646,1748896241165,-151.0,0.0002678,7]
[363843647,1748896241174,-151.0,0.0002678,7]
[363843648,1748896241183,-151.0,0.0002678,7]
[363843649,1748896241192,-151.0,0.0002678,7]
[363843650,1748896241201,-151.0,0.0002678,7]
[363843651,1748896241211,-151.0,0.0002678,7]
[363843652,1748896241221,-5771.213658,0.0002678,7]
[363843653,1748896241230,-5771.213658,0.0002678,7]
[363843654,1748896241239,-151.0,0.0002678,7]
[363843655,1748896241248,-151.0,0.0002678,7]
[363843656,1748896241257,-151.0,0.0002678,7]
[363843657,1748896241267,-151.0,0.0002678,7]
[363843658,1748896241276,-151.0,0.0002678,7]
[363843659,1748896241285,-182.884633,0.0002678,7]
[363843660,1748896241295,-182.884633,0.0002678,7]
[363843661,1748896241304,-151.0,0.0002678,7]
[363843662,1748896241314,-151.0,0.0002678,7]
[363843663,1748896241324,-151.0,0.0002678,7]
[363843664,1748896241333,-155.104476,0.0002678,7]
[363843665,1748896241342,-155.104476,0.0002678,7]
[363843666,1748896241352,-151.0,0.0002678,7]
[363843667,1748896241361,-151.0,0.0002678,7]
[363843668,1748896241371,-164.4977,0.0002678,7]
[363843669,1748896241380,-164.4977,0.0002678,7]
[363843670,1748896241390,-243.892868,0.0002678,7]
[363843671,1748896241399,-243.892868,0.0002678,7]
[363843672,1748896241409,-151.0,0.0002678,7]
[363843673,1748896241418,-151.0,0.0002678,7]
[363843674,1748896241428,-151.0,0.0002678,7]
[363843675,1748896241437,-151.0,0.0002678,7]
[363843676,1748896241447,-151.0,0.0002678,7]
[363843677,1748896241456,-102894.543225,0.0002678,3]
[363843678,1748896241467,-106929.918731,0.0002678,3]
[363843679,1748896241476,-1738.82719474,0.0002678,2]
[363843680,1748896241487,-500.0,0.00026784,2]
[363843681,1748896241496,-151.0,0.0002679,7]
[363843682,1748896241506,-151.0,0.0002679,7]
[363843683,1748896241515,-721.727568,0.0002679,7]
[363843684,1748896241525,-721.727568,0.0002679,7]
[363843685,1748896241536,-183.413195,0.0002679,7]
[363843686,1748896241545,-183.413195,0.0002679,7]
[363843687,1748896241554,-151.0,0.0002679,7]
[363843688,1748896241564,-280.43296,0.0002679,7]
[363843689,1748896241574,-280.43296,0.0002679,7]
[363843690,1748896241584,-151.0,0.0002679,7]
[363843691,1748896241594,-243.174419,0.0002679,7]
[363843692,1748896241604,-243.174419,0.0002679,7]
[363843693,1748896241613,-151.0,0.0002679,7]
[363843694,1748896241623,-161.565653,0.0002679,7]
[363843695,1748896241633,-161.565653,0.0002679,7]
[363843696,1748896241642,-151.0,0.0002679,7]
[363843697,1748896241652,-151.0,0.0002679,7]
[363843698,1748896241662,-151.0,0.0002679,7]
[363843699,1748896241672,-151.0,0.0002679,7]
[363843700,1748896241682,-151.0,0.0002679,7]
[363843701,1748896241691,-151.0,0.0002679,7]
[363843702,1748896241701,-151.0,0.0002679,7]
[363843703,1748896241712,-613.528054,0.0002679,7]
[363843704,1748896241722,-613.528054,0.0002679,7]
[363843705,1748896241731,-151.0,0.0002679,7]
[363843706,1748896241741,-151.0,0.0002679,7]
[363843707,1748896241751,-5771.213658,0.0002679,7]
[363843708,1748896241760,-5771.213658,0.0002679,7]
[363843709,1748896241770,-151.0,0.0002679,7]
[363843710,1748896241779,-151.0,0.0002679,7]
[363843711,1748896241788,-151.0,0.0002679,7]
[363843712,1748896241798,-151.0,0.0002679,7]
[363843713,1748896241812,-151.0,0.0002679,7]
[363843714,1748896241822,-182.884633,0.0002679,7]
[363843715,1748896241832,-182.884633,0.0002679,7]
[363843716,1748896241843,-151.0,0.0002679,7]
[363843717,1748896241853,-153.907399,0.0002679,7]
[363843718,1748896241862,-151.0,0.0002679,7]
[363843719,1748896241872,-155.104476,0.0002679,7]
[363843720,1748896241882,-155.104476,0.0002679,7]
[363843721,1748896241892,-171.22387727,0.0002679,7]
[363843722,1748896241902,-151.0,0.0002679,7]
[363843723,1748896241911,-164.4977,0.0002679,7]
[363843724,1748896241920,-164.4977,0.0002679,7]
[363843725,1748896241930,-137192.7243,0.0002679,3]
[363843726,1748896241940,-152757.026759,0.0002679,3]
[363843727,1748896241949,-243.892868,0.0002679,7]
[363843728,1748896241960,-243.892868,0.0002679,7]
[363843729,1748896241970,-151.0,0.0002679,7]
[363843730,1748896241979,-151.0,0.0002679,7]
[363843731,1748896241989,-151.0,0.0002679,7]
[363843732,1748896241998,-181.702654,0.0002679,7]
[363843733,1748896242008,-151.0,0.0002679,7]
[363843734,1748896242018,-151.0,0.0002679,7]
[363843735,1748896242027,-160.35,0.0002679,2]
[363843736,1748896242037,-36190.04041547,0.0002679,2]
[363843737,1748896242047,-413.36,0.00026799,2]
[363843738,1748896242056,-270169.64,0.000268,7]
[363843739,1748896242065,-287.828821,0.000268,7]
[363843740,1748896242075,-151.0,0.000268,7]
[363843741,1748896242084,-151.0,0.000268,7]
[363843742,1748896242095,-151.0,0.000268,7]
[363843743,1748896242104,-162.356194,0.000268,7]
[363843744,1748896242114,-162.356194,0.000268,7]
[363843745,1748896242124,-721.727568,0.000268,7]
[363843746,1748896242133,-721.727568,0.000268,7]
[363843747,1748896242143,-151.0,0.000268,7]
[363843748,1748896242153,-151.0,0.000268,7]
[363843749,1748896242163,-151.0,0.000268,7]
[363843750,1748896242173,-153.680147,0.000268,7]
[363843751,1748896242183,-183.413195,0.000268,7]
[363843752,1748896242192,-183.413195,0.000268,7]
[363843753,1748896242322,-151.0,0.000268,7]
[363843754,1748896242332,-280.43296,0.000268,7]
[363843755,1748896242343,-280.43296,0.000268,7]
[363843756,1748896242352,-151.0,0.000268,7]
[363843757,1748896242362,-151.0,0.000268,7]
[363843758,1748896242372,-243.174419,0.000268,7]
[363843759,1748896242382,-243.174419,0.000268,7]
[363843760,1748896242392,-151.0,0.000268,7]
[363843761,1748896242401,-178.308076,0.000268,7]
[363843762,1748896242411,-151.0,0.000268,7]
[363843763,1748896242421,-161.565653,0.000268,7]
[363843764,1748896242430,-161.565653,0.000268,7]
[363843765,1748896242440,-151.0,0.000268,7]
[363843766,1748896242450,-166.262997,0.000268,7]
[363843767,1748896242461,-151.0,0.000268,7]
[363843768,1748896242471,-287.790301,0.000268,7]
[363843769,1748896242481,-151.0,0.000268,7]
[363843770,1748896242490,-151.0,0.000268,7]
[363843771,1748896242500,-151.0,0.000268,7]
[363843772,1748896242510,-151.0,0.000268,7]
[363843773,1748896242519,-151.0,0.000268,7]
[363843774,1748896242529,-189.569203,0.000268,7]
[363843775,1748896242539,-228.705203,0.000268,7]
[363843776,1748896242548,-151.0,0.000268,7]
[363843777,1748896242559,-151.0,0.000268,7]
[363843778,1748896242568,-151.0,0.000268,7]
[363843779,1748896242577,-170.492525,0.000268,7]
[363843780,1748896242587,-151.0,0.000268,7]
[363843782,1748896242596,-183.924215,0.000268,7]
[363843783,1748896242606,-609.142235,0.000268,7]
[363843785,1748896242615,-183.924215,0.000268,7]
[363843787,1748896242624,-609.142235,0.000268,7]
[363843789,1748896242633,-274.527172,0.000268,7]
[363843790,1748896242643,-274.527172,0.000268,7]
[363843791,1748896242652,-151.0,0.000268,7]
[363843792,1748896242662,-1255.970937,0.000268,7]
[363843793,1748896242672,-151.0,0.000268,7]
[363843794,1748896242681,-560.834385,0.000268,7]
[363843795,1748896242692,-484.618963,0.000268,7]
[363843797,1748896242701,-560.834385,0.000268,7]
[363843798,1748896242711,-484.618963,0.000268,7]
[363843799,1748896242720,-245.504821,0.000268,7]
[363843803,1748896242730,-151.0,0.000268,7]
[363843805,1748896242739,-613.528054,0.000268,7]
[363843807,1748896242748,-613.528054,0.000268,7]
[363843809,1748896242757,-151.0,0.000268,7]
[363843811,1748896242765,-151.0,0.000268,7]
[363843814,1748896242774,-151.0,0.000268,7]
[363843815,1748896242783,-151.0,0.000268,7]
[363843817,1748896242792,-151.0,0.000268,7]
[363843818,1748896242805,-151.0,0.000268,7]
[363843819,1748896242814,-151.0,0.000268,7]
[363843820,1748896242824,-151.0,0.000268,7]
[363843822,1748896242833,-152.062676,0.000268,7]
[363843823,1748896242843,-151.0,0.000268,7]
[363843824,1748896242853,-5771.213658,0.000268,7]
[363843825,1748896242863,-151.0,0.000268,7]
[363843826,1748896242872,-5771.213658,0.000268,7]
[363843827,1748896242883,-151.0,0.000268,7]
[363843828,1748896242893,-151.0,0.000268,7]
[363843829,1748896242903,-300.486164,0.000268,7]
[363843830,1748896242912,-151.0,0.000268,7]
[363843831,1748896242922,-607.114681,0.000268,7]
[363843832,1748896242931,-607.114681,0.000268,7]
[363843833,1748896242941,-151.0,0.000268,7]
[363843834,1748896242950,-182.884633,0.000268,7]
[363843835,1748896242960,-182.884633,0.000268,7]
[363843836,1748896242971,-151.0,0.000268,7]
[363843837,1748896242980,-151.0,0.000268,7]
[363843838,1748896242991,-155.104476,0.000268,7]
[363843839,1748896243000,-155.104476,0.000268,7]
[363843840,1748896243010,-151.0,0.000268,7]
[363843841,1748896243019,-164.4977,0.000268,7]
[363843842,1748896243031,-164.4977,0.000268,7]
[363843843,1748896243040,-243.892868,0.000268,7]
[363843844,1748896243050,-243.892868,0.000268,7]
[363843845,1748896243060,-151.0,0.000268,7]
[363843846,1748896243070,-151.0,0.000268,7]
[363843847,1748896243079,-151.0,0.000268,7]
[363843848,1748896243089,-151.0,0.000268,7]
[363843849,1748896243098,-1200.0,0.000268,9]
[363843850,1748896243107,-3200.3905548,0.00026862,2]
[363843851,1748896243117,-12516.14426738,0.00026896,2]
[363843852,1748896243127,-1800.0,0.000269,9]
[363843853,1748896243137,-202.0,0.0002691,2]
[363843854,1748896243147,-210.0,0.0002691,2]
[363843855,1748896243156,-152.0,0.00026933,6]
[363843856,1748896243166,-34298.1810749,0.00026946,3]
[363843857,1748896243176,-231.28369723,0.00026956,2]
[363843858,1748896243186,-500.0,0.00026995,2]
[363843859,1748896243196,-2474.351899,0.00027,2]
[363843860,1748896243206,-1654.12927155,0.00027,120]
[363843861,1748896243217,-566.0,0.00027064,7]
[363843862,1748896243226,-34298.1810749,0.00027079,3]
[363843863,1748896243236,-16791.6991131,0.00027084,2]
[363843865,1748896243246,-151.0,0.00027102,7]
[363843867,1748896243256,-183.924215,0.00027102,7]
[363843869,1748896243265,-183.924215,0.00027102,7]
[363843871,1748896243275,-560.834385,0.00027102,7]
[363843872,1748896243284,-560.834385,0.00027102,7]
[363843873,1748896243294,-161.465619,0.00027102,7]
[363843874,1748896243304,-151.0,0.00027102,7]
[363843875,1748896243314,-151.0,0.00027102,7]
[363843876,1748896243323,-151.0,0.00027102,7]
[363843877,1748896243333,-151.0,0.00027104,7]
[363843878,1748896243342,-151.0,0.00027104,7]
[363843879,1748896243351,-274.527172,0.00027104,7]
[363843881,1748896243361,-274.527172,0.00027104,7]
[363843882,1748896243370,-1255.970937,0.00027109,7]
[363843884,1748896243380,-484.618963,0.00027109,7]
[363843885,1748896243390,-484.618963,0.00027109,7]
[363843886,1748896243399,-151.0,0.00027109,7]
[363843887,1748896243409,-151.0,0.00027109,7]
[363843888,1748896243418,-151.0,0.00027109,7]
[363843889,1748896243428,-151.0,0.00027109,7]
[363843890,1748896243437,-607.114681,0.00027109,7]
[363843891,1748896243447,-607.114681,0.00027109,7]
[363843892,1748896243456,-3200.3905548,0.0002718,2]
[363843893,1748896243467,-174.0,0.00027185,7]
[363843894,1748896243476,-1100.0,0.00027211,2]
[363843895,1748896243486,-1001.0242,0.00027223,2]
[363843896,1748896243496,-2000.0,0.00027223,2]
[363843897,1748896243506,-1232.286766,0.00027239,7]
[363843898,1748896243516,-1232.286766,0.00027239,7]
[363843899,1748896243525,-161.565653,0.00027239,7]
[363843901,1748896243535,-161.565653,0.00027239,7]
[363843903,1748896243544,-151.0,0.00027239,7]
[363843904,1748896243554,-609.142235,0.00027239,7]
[363843905,1748896243563,-609.142235,0.00027239,7]
[363843906,1748896243572,-151.0,0.00027239,7]
[363843907,1748896243581,-499.32827844,0.00027273,2]
[363843908,1748896243592,-151.0,0.00027281,7]
[363843909,1748896243601,-151.0,0.00027281,7]
[363843910,1748896243611,-285.052138,0.00027281,7]
[363843911,1748896243620,-151.0,0.0002729,7]
[363843912,1748896243630,-215.158675,0.0002729,7]
[363843913,1748896243640,-151.0,0.0002729,7]
[363843914,1748896243650,-151.0,0.0002729,7]
[363843915,1748896243660,-151.0,0.0002729,7]
[363843916,1748896243672,-151.0,0.0002729,7]
[363843917,1748896243682,-151.0,0.0002729,7]
[363843918,1748896243691,-209.2,0.000273,2]
[363843919,1748896243700,-209.2,0.000273,2]
[363843921,1748896243711,-151.0,0.000273,7]
[363843922,1748896243721,-151.0,0.000273,7]
[363843923,1748896243730,-151.0,0.000273,7]
[363843924,1748896243739,-151.0,0.000273,7]
[363843925,1748896243749,-151.0,0.000273,7]
[363843926,1748896243758,-1232.286766,0.000273,7]
[363843927,1748896243767,-1232.286766,0.000273,7]
[363843928,1748896243777,-183.413195,0.000273,7]
[363843929,1748896243785,-183.413195,0.000273,7]
[363843930,1748896243795,-151.0,0.000273,7]
[363843931,1748896243808,-280.43296,0.000273,7]
[363843932,1748896243818,-280.43296,0.000273,7]
[363843933,1748896243827,-151.0,0.000273,7]
[363843934,1748896243837,-243.174419,0.000273,7]
[363843935,1748896243847,-243.174419,0.000273,7]
[363843936,1748896243856,-151.0,0.000273,7]
[363843937,1748896243865,-156.118921,0.000273,7]
[363843938,1748896243874,-151.0,0.000273,7]
[363843939,1748896243886,-183.924215,0.000273,7]
[363843940,1748896243895,-183.924215,0.000273,7]
[363843941,1748896243905,-151.0,0.000273,7]
[363843942,1748896243914,-560.834385,0.000273,7]
[363843943,1748896244024,-560.834385,0.000273,7]
[363843944,1748896244045,-151.0,0.000273,7]
[363843945,1748896244055,-613.528054,0.000273,7]
[363843946,1748896244064,-613.528054,0.000273,7]
[363843947,1748896244074,-151.0,0.000273,7]
[363843948,1748896244083,-151.0,0.000273,7]
[363843949,1748896244093,-151.0,0.000273,7]
[363843950,1748896244103,-151.0,0.000273,7]
[363843951,1748896244112,-5771.213658,0.000273,7]
[363843952,1748896244122,-151.0,0.000273,7]
[363843953,1748896244131,-5771.213658,0.000273,7]
[363843954,1748896244141,-151.0,0.000273,7]
[363843955,1748896244151,-159.0,0.000273,16]
[363843956,1748896244160,-683318.21281995,0.00027338,2]
[363843957,1748896244171,-34298.1810749,0.00027339,3]
[363843958,1748896244189,-151.0,0.00027349,7]
[363843959,1748896244199,-164.4977,0.00027349,7]
[363843960,1748896244209,-164.4977,0.00027349,7]
[363843961,1748896244218,-151.0,0.00027349,7]
[363843962,1748896244227,-151.0,0.00027349,7]
[363843963,1748896244237,-700.0,0.0002736,7]
[363843964,1748896244247,-314.0,0.0002736,2]
[363843965,1748896244256,-202.0,0.0002736,2]
[363843966,1748896244266,-210.0,0.0002736,2]
[363843967,1748896244275,-202.0,0.0002736,2]
[363843968,1748896244284,-500.0,0.0002737,2]
[363843969,1748896244294,-187.648947,0.00027378,7]
[363843970,1748896244304,-151.0,0.00027378,7]
[363843971,1748896244314,-274.527172,0.00027378,7]
[363843972,1748896244326,-274.527172,0.00027378,7]
[363843973,1748896244336,-1255.970937,0.00027378,7]
[363843974,1748896244345,-484.618963,0.00027378,7]
[363843975,1748896244357,-484.618963,0.00027378,7]
[363843976,1748896244366,-151.0,0.00027378,7]
[363843977,1748896244377,-151.0,0.00027378,7]
[363843978,1748896244387,-151.0,0.00027378,7]
[363843979,1748896244396,-151.0,0.00027378,7]
[363843980,1748896244406,-607.114681,0.00027378,7]
[363843981,1748896244416,-607.114681,0.00027378,7]
[363843982,1748896244426,-151.0,0.0002738,7]
[363843983,1748896244436,-609.142235,0.0002738,7]
[363843984,1748896244445,-609.142235,0.0002738,7]
[363843985,1748896244455,-151.0,0.0002738,7]
[363843986,1748896244466,-151.0,0.0002738,7]
[363843987,1748896244476,-182.884633,0.0002738,7]
[363843988,1748896244485,-182.884633,0.0002738,7]
[363843989,1748896244495,-151.0,0.0002738,7]
[363843990,1748896244504,-155.104476,0.0002738,7]
[363843991,1748896244514,-155.104476,0.0002738,7]
[363843992,1748896244523,-151.0,0.0002738,7]
[363843993,1748896244533,-243.892868,0.0002738,7]
[363843994,1748896244542,-243.892868,0.0002738,7]
[363843995,1748896244552,-151.0,0.0002738,7]
[363843996,1748896244561,-34298.1810749,0.00027387,3]
[363843997,1748896244571,-4005.60530606,0.0002739,2]
[363843998,1748896244582,-5422.99297512,0.0002739,10]
[363843999,1748896244591,-3474.5543189,0.0002739,2]
[363844000,1748896244601,-501.9632321,0.0002739,28]
[363844001,1748896244611,-4229.19795063,0.0002739,7]
[363844002,1748896244621,-213.98891338,0.0002739,2]
[363844003,1748896244631,-151.0,0.0002739,7]
[363844004,1748896244640,-151.0,0.0002739,7]
[363844005,1748896244650,-151.0,0.0002739,7]
[363844006,1748896244659,-151.0,0.0002739,7]
[363844007,1748896244669,-151.0,0.0002739,7]
[363844008,1748896244679,-151.0,0.0002739,7]
[363844009,1748896244689,-3048.69313203,0.0002739,120]
[363844010,1748896244699,-151.0,0.0002739,7]
[363844011,1748896244709,-420.0,0.00027397,2]
[363844012,1748896244719,-420.0,0.00027397,2]
[363844013,1748896244729,-420.0,0.00027397,2]
[363844014,1748896244738,-151.0,0.00027397,7]
[363844015,1748896244747,-151.0,0.00027397,7]
[363844016,1748896244757,-162.356194,0.00027397,7]
[363844017,1748896244766,-162.356194,0.00027397,7]
[363844018,1748896244775,-721.727568,0.00027397,7]
[363844019,1748896244785,-721.727568,0.00027397,7]
[363844020,1748896244795,-151.0,0.00027397,7]
[363844021,1748896244817,-151.0,0.00027397,7]
[363844022,1748896244835,-198.499374,0.00027397,7]
[363844023,1748896244857,-151.0,0.00027397,7]
[363844024,1748896244876,-1228.7,0.00027397,2]
[363844025,1748896244892,-1090.68546787,0.00027397,15]
[363844026,1748896244911,-506.215,0.00027397,30]
[363844027,1748896244931,-151.0,0.00027397,30]
[363844028,1748896244951,-200.0,0.00027397,60]
[363844029,1748896244969,-151.67,0.00027397,2]
[363844030,1748896244988,-182.84,0.00027397,80]
[363844031,1748896245005,-150.0,0.00027397,2]
[363844032,1748896245020,-300.0,0.00027397,2]
[363844033,1748896245039,-700.0,0.00027397,2]
[363844034,1748896245053,-501.96,0.00027397,2]
[363844035,1748896245071,-9681.67,0.00027397,2]
[363844036,1748896245085,-213.348743,0.00027397,7]
[363844037,1748896245101,-213.348743,0.00027397,7]
[363844038,1748896245118,-213.348743,0.00027397,7]
[363844039,1748896245133,-213.348743,0.00027397,7]
[363844040,1748896245149,-213.348743,0.00027397,7]
[363844041,1748896245164,-213.348743,0.00027397,7]
[363844042,1748896245183,-213.348743,0.00027397,7]
[363844043,1748896245199,-213.348743,0.00027397,7]
[363844044,1748896245216,-213.348743,0.00027397,7]
[363844045,1748896245231,-213.348743,0.00027397,7]
[363844046,1748896245247,-150.99,0.00027397,2]
[363844047,1748896245262,-1000.0,0.000274,2]
[363844048,1748896245278,-1783.2478,0.000274,2]
[363844049,1748896245293,-1783.2478,0.000274,2]
[363844050,1748896245309,-1881.2712,0.000274,2]
[363844051,1748896245325,-1881.2712,0.000274,2]
[363844052,1748896245341,-961.08,0.000274,2]
[363844053,1748896245357,-1921.5271,0.000274,2]
[363844054,1748896245373,-1921.5271,0.000274,2]
[363844055,1748896245388,-500.0,0.00027406,2]
[363844056,1748896245403,-151.0,0.00027418,7]
[363844057,1748896245418,-183.924215,0.00027418,7]
[363844058,1748896245432,-183.924215,0.00027418,7]
[363844059,1748896245448,-560.834385,0.00027418,7]
[363844060,1748896245464,-560.834385,0.00027418,7]
[363844061,1748896245480,-151.0,0.00027418,7]
[363844062,1748896245495,-151.0,0.00027418,7]
[363844063,1748896245510,-151.0,0.00027418,7]
[363844064,1748896245526,-151.0,0.00027424,7]
[363844065,1748896245541,-204.0,0.00027434,6]
[363844066,1748896245557,-3200.3905548,0.00027497,2]
[363844067,1748896245573,-363.79091431,0.00027499,2]
[363844147,1748896246735,-1952.41270192,0.00027499,2]
[363844149,1748896246744,-10887.63374787,0.00027499,2]
[363844152,1748896246759,-5904.06536523,0.00027499,2]
[363844154,1748896246769,-531.9064983,0.000275,2]
[363844156,1748896246778,-194.74956156,0.000275,2]
[363844158,1748896246786,-150.0,0.00027522,2]
[363844160,1748896246795,-152.0,0.00027533,7]
[363844162,1748896246807,-500.0,0.00027545,2]
[363844164,1748896246816,-1000.0,0.000276,2]
[363844166,1748896246825,-807.1,0.00027607,2]
[363844167,1748896246835,-807.1,0.00027607,2]
[363844169,1748896246844,-807.1,0.00027607,2]
[363844172,1748896246854,-500.0,0.00027614,2]
[363844174,1748896246864,-500.0,0.00027616,2]
[363844175,1748896246873,-420.0,0.00027671,2]
[363844177,1748896246883,-420.0,0.00027671,2]
[363844179,1748896246893,-420.0,0.00027671,2]
[363844181,1748896246903,-500.0,0.00027673,5]
[363844183,1748896246913,-509.21130899,0.00027673,5]
[363844185,1748896246923,-500.0,0.00027673,5]
[363844187,1748896246933,-500.0,0.00027673,5]
[363844189,1748896246943,-527.8792245,0.00027673,5]
[363844191,1748896246953,-500.0,0.00027673,5]
[363844193,1748896246963,-500.0,0.00027673,5]
[363844196,1748896246973,-500.0,0.00027673,5]
[363844197,1748896246983,-500.0,0.00027673,5]
[363844200,1748896246992,-500.0,0.00027673,5]
[363844202,1748896247002,-502.85689804,0.00027673,5]
[363844204,1748896247011,-151.0,0.0002768,7]
[363844206,1748896247020,-609.142235,0.0002768,7]
[363844208,1748896247029,-609.142235,0.0002768,7]
[363844210,1748896247038,-274.527172,0.0002768,7]
[363844211,1748896247047,-274.527172,0.0002768,7]
[363844213,1748896247056,-151.0,0.0002768,7]
[363844215,1748896247066,-1255.970937,0.0002768,7]
[363844217,1748896247075,-484.618963,0.0002768,7]
[363844219,1748896247084,-484.618963,0.0002768,7]
[363844221,1748896247093,-153.752563,0.0002768,7]
[363844223,1748896247102,-151.0,0.0002768,7]
[363844226,1748896247112,-151.0,0.0002768,7]
[363844228,1748896247121,-607.114681,0.0002768,7]
[363844230,1748896247130,-607.114681,0.0002768,7]
[363844232,1748896247140,-20374.92591106,0.0002768,3]
[363844233,1748896247151,-2411.22947931,0.0002768,3]
[363844234,1748896247162,-1180.000015,0.0002768,3]
[363844235,1748896247175,-917.66534124,0.0002768,3]
[363844236,1748896247209,-372.1643057,0.0002768,3]
[363844237,1748896247221,-932.53543397,0.0002768,3]
[363844238,1748896247232,-512.33130306,0.0002768,3]
[363844239,1748896247244,-2623.3,0.0002768,3]
[363844240,1748896247255,-580.6951367,0.0002768,3]
[363844241,1748896247266,-4393.33414886,0.0002768,3]
[363844242,1748896247276,-500.0,0.00027686,2]
[363844243,1748896247285,-151.0,0.0002769,7]
[363844244,1748896247295,-151.0,0.0002769,7]
[363844245,1748896247304,-161.565653,0.0002769,7]
[363844246,1748896247314,-161.565653,0.0002769,7]
[363844247,1748896247323,-151.0,0.0002769,7]
[363844248,1748896247333,-151.0,0.0002769,7]
[363844249,1748896247342,-151.0,0.0002769,7]
[363844250,1748896247351,-151.0,0.0002769,7]
[363844251,1748896247361,-183.924215,0.0002769,7]
[363844252,1748896247370,-183.924215,0.0002769,7]
[363844253,1748896247380,-560.834385,0.0002769,7]
[363844254,1748896247389,-560.834385,0.0002769,7]
[363844255,1748896247399,-151.0,0.0002769,7]
[363844256,1748896247408,-151.0,0.0002769,7]
[363844257,1748896247418,-151.0,0.0002769,7]